bitfinex-derivatives/quotes_BNBF0:USTF0_20230831
["timestamp","ask_amount","ask_price","bid_price","bid_amount"]
[1693448196717,0.073568,223.21,223.0,0.82240134]
[1693448196919,0.073568,223.21,223.01,0.82240134]
[1693448197118,0.073568,223.21,222.98,0.07356331]
[1693448197318,0.073568,223.21,222.99,0.82242227]
[1693448201320,0.073568,223.21,222.99,0.89598558]
[1693448201621,0.073568,223.21,223.0,0.82242227]
[1693448201920,0.073568,223.21,223.01,0.82242227]
[1693448202115,0.073568,223.21,222.99,0.82242227]
[1693448202322,0.073568,223.21,223.0,0.82242991]
[1693448202621,0.073568,223.21,223.01,0.82242991]
[1693448202822,0.073568,223.21,222.99,0.07356331]
[1693448203016,0.073568,223.21,223.0,0.82243087]
[1693448203220,0.073568,223.21,222.99,0.82243087]
[1693448203423,0.073568,223.21,223.0,0.82243087]
[1693448203621,0.073568,223.21,222.99,0.82243087]
[1693448203823,0.073568,223.21,223.0,0.82243087]
[1693448206421,0.073568,223.2,223.0,0.82243087]
[1693448213429,0.073568,223.2,223.0,0.89599418]
[1693448213729,0.073568,223.2,223.01,0.82243087]
[1693448214331,0.073568,223.2,222.99,0.07356331]
[1693448214531,0.073568,223.2,223.0,0.82246596]
[1693448215530,0.073568,223.2,223.0,0.89602927]
[1693448215731,0.073568,223.2,223.01,0.82246596]
[1693448216933,0.073568,223.2,222.99,0.07356331]
[1693448217135,0.073568,223.2,223.0,0.82246801]
[1693448218534,0.073568,223.2,223.0,0.89603132]
[1693448218836,0.073568,223.2,223.01,0.82246801]
[1693448220639,2.4522669,223.33,223.01,0.82246801]
[1693448220835,0.0735078,223.2,223.0,0.07342211]
[1693448221140,0.0735078,223.2,223.01,0.8224639]
[1693448256873,0.0735078,223.19,222.99,0.07342211]
[1693448257074,0.0735078,223.19,223.0,0.82207345]
[1693448257374,0.0735078,223.2,223.0,0.89549556]
[1693448257568,0.0735078,223.2,223.0,0.07342211]
[1693448257771,0.0735078,223.2,223.01,0.8220685]
[1693448268681,0.0735078,223.21,223.01,0.8220685]
[1693448270581,0.0735078,223.2,223.01,0.8220685]
[1693448283584,0.0735078,223.2,223.0,0.07342211]
[1693448283784,0.0735078,223.2,223.01,0.82209493]
[1693448317614,0.0735078,223.19,223.01,0.82209493]
[1693448318412,0.0735078,223.2,223.01,0.82209493]
[1693448323718,0.0735078,223.2,223.0,0.07342211]
[1693448324018,0.0735078,223.19,222.99,0.07342211]
[1693448324218,0.0735078,223.19,223.0,0.82271845]
[1693448325519,0.0735078,223.2,223.0,0.82271845]
[1693448328019,0.0735078,223.19,223.0,0.82271845]
[1693448330321,0.0735078,223.2,223.0,0.82271845]
[1693448331121,0.0735078,223.19,223.0,0.82271845]
[1693448332920,0.0735078,223.19,222.98,0.07342211]
[1693448333119,0.0735078,223.19,222.99,0.82322749]
[1693448338627,0.0735078,223.19,222.97,0.07342211]
[1693448338922,0.0735078,223.19,222.98,0.82322581]
[1693448343931,0.0735078,223.19,222.99,0.82322581]
[1693448344232,0.0735078,223.19,222.96,0.07342211]
[1693448344431,0.0735078,223.19,222.97,0.82325823]
[1693448349935,0.0735078,223.2,222.97,0.82325823]
[1693448351337,0.0735078,223.2,222.97,0.89668034]
[1693448351537,0.0735078,223.2,222.98,0.82325823]
[1693448356141,0.0735078,223.2,222.98,0.89668034]
[1693448356341,0.0735078,223.2,222.99,0.82325823]
[1693448356743,0.0735078,223.2,223.0,0.82325823]
[1693448356937,0.0735078,223.2,222.97,0.07342211]
[1693448357138,0.0735078,223.2,222.98,0.82317673]
[1693448357534,0.0735078,223.2,222.98,0.89659884]
[1693448357740,0.0735078,223.2,222.99,0.82317673]
[1693448358337,0.0735078,223.19,222.99,0.82317673]
[1693448358541,0.0735078,223.19,222.97,0.07342211]
[1693448358742,0.0735078,223.19,222.98,0.82324256]
[1693448362645,0.0735078,223.2,222.98,0.89666467]
[1693448362847,0.0735078,223.2,222.99,0.82324256]
[1693448380658,0.0735078,223.19,222.99,0.82324256]
[1693448381052,0.0735078,223.2,222.99,0.82324256]
[1693448381454,0.0735078,223.19,222.99,0.82324256]
[1693448389660,0.0735078,223.19,222.99,0.89666467]
[1693448389862,0.0735078,223.19,223.0,0.82324256]
[1693448390061,0.0735078,223.19,222.99,0.89666467]
[1693448390261,0.0735078,223.19,223.0,0.82326335]
[1693448390457,0.0735078,223.19,222.98,0.07342211]
[1693448390659,0.0735078,223.19,222.99,0.89669568]
[1693448390859,0.0735078,223.19,223.0,0.82327357]
[1693448391061,0.0735078,223.19,222.99,0.82327357]
[1693448391253,0.0735078,223.19,223.0,0.82327335]
[1693448391458,0.0735078,223.19,222.98,0.07342211]
[1693448391658,0.0735078,223.19,222.99,0.8232942]
[1693448392563,0.0735078,223.2,222.99,0.89671631]
[1693448392857,0.0735078,223.2,223.0,0.8232942]
[1693448422683,0.0735078,223.19,223.0,0.8232942]
[1693448431597,0.0735078,223.19,222.98,0.07342211]
[1693448431796,0.0735078,223.19,222.99,0.82330373]
[1693448433698,0.0735078,223.14,222.93,0.07342211]
[1693448433898,0.0735078,223.13,222.92,0.07342211]
[1693448434089,0.0735078,223.12,222.93,0.82376159]
[1693448434493,0.0735078,223.15,222.93,0.82376159]
[1693448434692,0.0735078,223.15,222.89,0.07342211]
[1693448434895,0.0735078,223.14,222.9,0.82377355]
[1693448435097,0.0735078,223.14,222.91,0.82377355]
[1693448435296,0.0735078,223.15,222.92,0.82377355]
[1693448435500,0.0735078,223.16,222.89,0.82377355]
[1693448435698,0.0735078,223.16,222.9,0.82379384]
[1693448435899,0.0735078,223.16,222.91,0.82379384]
[1693448436101,0.0735078,223.16,222.92,0.82379384]
[1693448436399,0.0735078,223.17,222.86,0.07342211]
[1693448436600,0.0735078,223.17,222.87,0.82379129]
[1693448437396,0.0735078,223.18,222.87,0.82379129]
[1693448437593,0.0735078,223.18,222.88,0.82379129]
[1693448437799,0.0735078,223.17,222.89,0.82379129]
[1693448437999,0.0735078,223.17,222.9,0.82379129]
[1693448438200,0.0735078,223.17,222.91,0.82379129]
[1693448438500,0.0735078,223.18,222.92,0.82379129]
[1693448438701,0.0735078,223.18,222.85,0.82379129]
[1693448438896,0.0735078,223.18,222.86,0.82379424]
[1693448439094,0.0735078,223.18,222.85,0.82379424]
[1693448439394,0.0735078,223.19,222.86,0.82379424]
[1693448439594,0.0735078,223.19,222.87,0.82379424]
[1693448439793,0.0735078,223.19,222.84,0.82379424]
[1693448439995,0.0735078,223.19,222.85,0.82379424]
[1693448440194,0.0735078,223.19,222.86,0.82379424]
[1693448440395,0.0735078,223.19,222.87,0.82379424]
[1693448440593,0.0735078,223.19,222.88,0.82379424]
[1693448440797,0.0735078,223.19,222.89,0.82379424]
[1693448440996,0.0735078,223.19,222.9,0.82379424]
[1693448441197,0.0735078,223.19,222.91,0.82379424]
[1693448441499,2.45026,223.33,222.92,0.82379424]
[1693448441500,0.0735078,223.2,222.92,0.82379424]
[1693448441695,0.0735078,223.2,222.82,0.07342211]
[1693448441894,0.0735078,223.2,222.83,0.82379815]
[1693448443699,0.0735078,223.2,222.84,0.82379815]
[1693448443900,0.0735078,223.2,222.85,0.82379815]
[1693448444098,0.0735078,223.2,222.82,0.82379815]
[1693448444299,0.0735078,223.2,222.83,0.82379815]
[1693448444498,0.0735078,223.21,222.84,0.82379815]
[1693448444693,0.0735078,223.21,222.85,0.82379815]
[1693448444898,0.0735078,223.21,222.86,0.82379815]
[1693448445094,0.0735078,223.21,222.87,0.82379815]
[1693448445291,0.0735078,223.21,222.82,0.82379815]
[1693448445497,0.0735078,223.21,222.83,0.82379815]
[1693448445697,0.0735078,223.21,222.84,0.82379815]
[1693448446000,0.0735078,223.21,222.85,0.82379815]
[1693448446199,0.0735078,223.21,222.82,0.82379815]
[1693448446500,0.0735078,223.21,222.83,0.82379815]
[1693448446694,0.0735078,223.21,222.84,0.82379815]
[1693448446894,0.0735078,223.21,222.85,0.82379815]
[1693448447095,0.0735078,223.21,222.86,0.82379815]
[1693448447295,0.0735078,223.21,222.87,0.82379815]
[1693448447495,0.0735078,223.21,222.82,0.82379815]
[1693448447700,0.0735078,223.21,222.83,0.82379815]
[1693448447897,0.0735078,223.21,222.84,0.82379815]
[1693448448094,0.0735078,223.21,222.85,0.82379815]
[1693448448299,0.0735078,223.21,222.86,0.82379815]
[1693448448600,0.0735078,223.21,222.87,0.82379815]
[1693448448802,0.0735078,223.21,222.88,0.82379815]
[1693448449002,0.0735078,223.21,222.89,0.82379815]
[1693448449196,0.0735078,223.21,222.9,0.82379815]
[1693448449397,0.0735078,223.21,222.91,0.82379815]
[1693448449597,0.0735078,223.21,222.8,0.07342211]
[1693448449800,0.0735078,223.21,222.81,0.82379411]
[1693448454796,0.0735078,223.2,222.81,0.82379411]
[1693448455001,0.0735078,223.2,222.82,0.82379411]
[1693448455204,0.0735078,223.2,222.83,0.82379411]
[1693448455405,0.0735078,223.2,222.84,0.82379411]
[1693448455606,0.0735078,223.2,222.85,0.82379411]
[1693448455805,0.0735078,223.2,222.86,0.82379411]
[1693448456006,0.0735078,223.2,222.87,0.82379411]
[1693448456206,0.0735078,223.2,222.88,0.82379411]
[1693448456507,0.0735078,223.2,222.89,0.82379411]
[1693448456707,0.0735078,223.2,222.9,0.82379411]
[1693448456907,0.0735078,223.2,222.91,0.82379411]
[1693448457207,0.0735078,223.2,222.8,0.07342211]
[1693448457507,0.0735078,223.2,222.81,0.82382917]
[1693448459507,0.0735078,223.19,222.81,0.89725128]
[1693448459703,0.0735078,223.19,222.82,0.82382917]
[1693448462608,0.0735078,223.18,222.82,0.89725128]
[1693448462807,0.0735078,223.18,222.83,0.82382917]
[1693448464515,0.0735078,223.17,222.83,0.82382917]
[1693448464816,0.0735078,223.17,222.83,0.89725128]
[1693448465011,0.0735078,223.17,222.84,0.82382917]
[1693448465411,0.0735078,223.16,222.84,0.89725128]
[1693448465613,0.0735078,223.16,222.85,0.82382917]
[1693448466415,0.0735078,223.15,222.85,0.89725128]
[1693448466616,0.0735078,223.15,222.86,0.82382917]
[1693448467419,0.0735078,223.14,222.87,0.07342211]
[1693448467718,0.0735078,223.14,222.88,0.82382917]
[1693448468316,0.0735078,223.11,222.89,0.07342211]
[1693448468512,0.0735078,223.11,222.9,0.82382917]
[1693448468717,0.0735078,223.12,222.9,0.89725128]
[1693448468918,0.0735078,223.13,222.91,0.82382917]
[1693448469223,0.0735078,223.13,222.91,0.89725128]
[1693448469421,0.0735078,223.13,222.5,2.4474037]
[1693448469422,0.0735078,223.12,222.9,0.07342211]
[1693448469620,0.0735078,223.12,222.91,0.82378707]
[1693448487428,0.0735078,223.11,222.91,0.82378707]
[1693448487827,0.0735078,223.11,222.89,0.07342211]
[1693448488127,0.0735078,223.11,222.9,0.82380627]
[1693448488628,0.0735078,223.11,222.9,0.89722838]
[1693448488830,0.0735078,223.11,222.91,0.82380627]
[1693448497338,0.0735078,223.11,222.9,0.82380627]
[1693448497535,0.0735078,223.11,222.91,0.82381704]
[1693448497736,0.0735078,223.11,222.83,0.14684422]
[1693448497737,0.0735078,223.11,222.9,0.07342211]
[1693448497936,0.0735078,223.11,222.91,0.82381582]
[1693448504446,0.0735078,223.1,222.89,0.07342211]
[1693448504648,0.0735078,223.1,222.9,0.82384309]
[1693448508749,0.0735078,223.11,222.9,0.82384309]
[1693448516655,0.0735078,223.1,222.9,0.82384309]
[1693448516849,0.0735078,223.1,222.89,0.07342211]
[1693448517052,0.0735078,223.1,222.9,0.82385332]
[1693448526358,0.0735078,223.11,222.9,0.82385332]
[1693448527556,0.0735078,223.11,222.9,0.89727543]
[1693448527861,0.0735078,223.11,222.91,0.82385332]
[1693448534559,0.0735078,223.1,222.91,0.82385332]
[1693448540973,0.0735078,223.11,222.91,0.82385332]
[1693448541669,0.0735078,223.1,222.91,0.82385332]
[1693448542171,0.0735078,223.11,222.91,0.82385332]
[1693448542572,0.0735078,223.1,222.91,0.82385332]
[1693448543371,0.0735078,223.11,222.91,0.82385332]
[1693448543966,0.0735078,223.1,222.91,0.82385332]
[1693448544367,0.1470156,223.13,222.91,0.82385332]
[1693448544368,0.0735078,223.11,222.91,0.82385332]
[1693448552171,0.0735078,223.1,222.89,0.07342211]
[1693448552374,0.0735078,223.1,222.9,0.82384145]
[1693448552775,0.0735078,223.1,222.9,0.89726356]
[1693448552975,0.0735078,223.1,222.91,0.82383856]
[1693448561680,0.0735078,223.1,222.9,0.07342211]
[1693448564281,0.0735078,223.1,222.91,0.82383472]
[1693448565287,0.0735078,223.1,222.9,0.07342211]
[1693448566387,0.0735078,223.1,222.91,0.82383513]
[1693448567787,0.0735078,223.1,222.9,0.07342211]
[1693448567987,0.0735078,223.1,222.91,0.82383505]
[1693448576485,0.0735078,223.1,222.9,0.07342211]
[1693448577590,0.0735078,223.1,222.91,0.82383319]
[1693448579691,0.0735078,223.1,222.9,0.07342211]
[1693448579986,0.0735078,223.1,222.89,0.07342211]
[1693448580192,0.0735078,223.1,222.9,0.82385032]
[1693448581192,0.0735078,223.1,222.9,0.89727243]
[1693448581493,0.0735078,223.1,222.9,0.07342211]
[1693448581689,0.0735078,223.1,222.89,0.07342211]
[1693448581895,0.0735078,223.1,222.9,0.8238474]
[1693448582091,0.0735078,223.1,222.9,0.89726951]
[1693448582291,0.0735078,223.1,222.9,0.07342211]
[1693448583596,0.0735078,223.1,222.89,0.07342211]
[1693448583797,0.0735078,223.1,222.9,0.82384524]
[1693448584196,0.0735078,223.1,222.9,0.89726735]
[1693448584397,0.0735078,223.1,222.89,0.07342211]
[1693448584593,0.0735078,223.1,222.9,0.89726715]
[1693448584895,0.0735078,223.1,222.9,0.07342211]
[1693448589596,0.0735078,223.1,222.91,0.82381943]
[1693448592703,0.0735078,223.1,222.9,0.07342211]
[1693448592903,0.0735078,223.1,222.91,0.82383006]
[1693448593602,0.0735078,223.1,222.9,0.07342211]
[1693448594506,0.0735078,223.1,222.91,0.82383185]
[1693448595603,0.0735078,223.1,222.9,0.07342211]
[1693448596505,0.0735078,223.1,222.91,0.823832]
[1693448607102,0.0735078,223.11,222.91,0.823832]
[1693448608910,0.0735078,223.1,222.91,0.823832]
[1693448609208,0.0735078,223.11,222.91,0.823832]
[1693448614112,0.0735078,223.1,222.91,0.823832]
[1693448614313,0.0735078,223.1,222.89,0.07342211]
[1693448614505,0.0735078,223.1,222.9,0.82381506]
[1693448614910,0.0735078,223.11,222.9,0.89723717]
[1693448615113,0.0735078,223.1,222.91,0.82381506]
[1693448623817,0.0735078,223.1,222.89,0.07342211]
[1693448624019,0.0735078,223.1,222.9,0.82381729]
[1693448625518,0.0735078,223.09,222.9,0.82381729]
[1693448626217,0.0735078,223.09,222.88,0.07342211]
[1693448626422,0.0735078,223.09,222.89,0.82385198]
[1693448627524,0.0735078,223.09,222.87,0.07342211]
[1693448627720,0.0735078,223.09,222.88,0.82386254]
[1693448629324,0.0735078,223.1,222.88,0.82386254]
[1693448634527,0.0735078,223.1,222.89,0.82386254]
[1693448634727,0.0735078,223.1,222.87,0.89728465]
[1693448634926,0.0735078,223.1,222.88,0.82385928]
[1693448635328,0.0735078,223.1,222.89,0.82385928]
[1693448635626,0.0735078,223.1,222.86,0.07342211]
[1693448635929,0.0735078,223.1,222.87,0.82385897]
[1693448639028,0.0735078,223.09,222.87,0.82385897]
[1693448639226,0.0735078,223.09,222.86,0.82385897]
[1693448639431,0.0735078,223.09,222.87,0.82385897]
[1693448639827,0.0735078,223.09,222.85,0.07342211]
[1693448639828,0.0735078,223.09,222.88,0.82385897]
[1693448640030,0.0735078,223.09,222.86,0.82385897]
[1693448640229,0.0735078,223.09,222.87,0.82390451]
[1693448640431,0.0735078,223.09,222.7,0.48948074]
[1693448640432,0.0735078,223.05,222.8,0.07342211]
[1693448640735,0.0735078,223.05,222.81,0.82410924]
[1693448641936,0.0735078,223.06,222.81,0.82410924]
[1693448642231,0.0735078,223.06,222.82,0.82410924]
[1693448642536,0.0735078,223.06,222.83,0.82410924]
[1693448642737,0.0735078,223.06,222.79,0.07342211]
[1693448642936,0.0735078,223.06,222.8,0.82411427]
[1693448643137,0.0735078,223.06,222.81,0.82411427]
[1693448643336,0.0735078,223.07,222.79,0.82411427]
[1693448643636,0.0735078,223.07,222.8,0.82411427]
[1693448643830,0.0735078,223.07,222.81,0.82411427]
[1693448644134,0.0735078,223.07,222.82,0.82411427]
[1693448644339,0.0735078,223.08,222.83,0.82411427]
[1693448644531,0.0735078,223.08,222.77,0.07342211]
[1693448644836,0.0735078,223.08,222.78,0.82411278]
[1693448645436,0.0735078,223.09,222.78,0.82411278]
[1693448645636,0.0735078,223.09,222.79,0.82411278]
[1693448645835,0.0735078,223.09,222.8,0.82411278]
[1693448646036,0.0735078,223.09,222.81,0.82411278]
[1693448646235,0.0735078,223.09,222.77,0.82411278]
[1693448647536,0.0735078,223.1,222.78,0.82411278]
[1693448647736,0.0735078,223.1,222.79,0.82411278]
[1693448647936,0.0735078,223.09,222.76,0.82411278]
[1693448648136,0.0735078,223.09,222.77,0.82411278]
[1693448648338,0.0735078,223.1,222.78,0.82411278]
[1693448648535,0.0735078,223.1,222.79,0.82411278]
[1693448648735,0.0735078,223.1,222.8,0.82411278]
[1693448648935,0.0735078,223.1,222.81,0.82411278]
[1693448649134,0.0735078,223.1,222.82,0.82411278]
[1693448649335,0.0735078,223.1,222.76,0.82411278]
[1693448649531,0.0735078,223.1,222.77,0.82411278]
[1693448649735,0.0735078,223.1,222.76,0.82411278]
[1693448649932,0.0735078,223.1,222.77,0.82411278]
[1693448650135,0.0735078,223.1,222.76,0.82411278]
[1693448650339,0.0735078,223.1,222.77,0.82411278]
[1693448650539,0.0735078,223.1,222.75,0.82411278]
[1693448650838,0.0735078,223.1,222.76,0.82411278]
[1693448651038,0.0735078,223.1,222.77,0.82411278]
[1693448651241,0.0735078,223.1,222.78,0.82411278]
[1693448651442,0.0735078,223.1,222.79,0.82411278]
[1693448651740,0.0735078,223.1,222.8,0.82411278]
[1693448652042,0.0735078,223.1,222.81,0.82411278]
[1693448652242,0.0735078,223.1,222.82,0.82411278]
[1693448652541,0.0735078,223.1,222.83,0.82411278]
[1693448652841,0.0735078,223.1,222.74,0.07342211]
[1693448653141,0.0735078,223.1,222.75,0.8241116]
[1693448654235,0.0735078,223.11,222.75,0.8241116]
[1693448655143,0.0735078,223.1,222.75,0.8241116]
[1693448655341,0.0735078,223.11,222.75,0.8241116]
[1693448656239,0.0735078,223.1,222.75,0.8241116]
[1693448661549,0.0735078,223.09,222.75,0.8241116]
[1693448663152,0.0735078,223.09,222.75,0.89753371]
[1693448663353,0.0735078,223.09,222.76,0.8241116]
[1693448666348,0.0735078,223.09,222.76,0.89753371]
[1693448666549,0.0735078,223.09,222.77,0.8241116]
[1693448666746,0.0735078,223.09,222.78,0.8241116]
[1693448667052,0.0735078,223.09,222.79,0.8241116]
[1693448667252,0.0735078,223.09,222.8,0.8241116]
[1693448667453,0.0735078,223.08,222.81,0.8241116]
[1693448667648,0.0735078,223.08,222.82,0.8241116]
[1693448667855,0.0735078,223.08,222.83,0.8241116]
[1693448668154,0.0735078,223.08,222.76,0.07342211]
[1693448668347,0.0735078,223.08,222.77,0.82410949]
[1693448669347,0.0735078,223.07,222.77,0.8975316]
[1693448669549,0.0735078,223.07,222.78,0.82410949]
[1693448671257,0.0735078,223.06,222.78,0.8975316]
[1693448671458,0.0735078,223.06,222.79,0.82410949]
[1693448672352,0.0735078,223.05,222.79,0.8975316]
[1693448672551,0.0735078,223.05,222.8,0.82410949]
[1693448673157,0.0735078,223.04,222.8,0.8975316]
[1693448673354,0.0735078,223.04,222.81,0.82410949]
[1693448674357,0.0735078,223.02,222.82,0.07342211]
[1693448674556,0.0735078,223.02,222.83,0.82410949]
[1693448679061,2.45026,223.16,222.83,0.82410949]
[1693448679262,0.07346042,223.02,222.82,0.07356809]
[1693448679458,0.07346042,223.02,222.83,0.82411023]
[1693448701468,0.07346042,223.02,222.86,0.07356809]
[1693448701674,0.07346042,223.06,222.87,0.89767832]
[1693448701972,0.07346042,223.07,222.88,0.82411023]
[1693448702173,0.07346042,223.09,222.88,0.82411023]
[1693448702374,0.07346042,223.09,222.85,0.07356809]
[1693448702575,0.07346042,223.09,222.86,0.82387382]
[1693448703474,0.07346042,223.1,222.86,0.82387382]
[1693448703775,0.07346042,223.1,222.87,0.82387382]
[1693448703969,0.07346042,223.1,222.85,0.82387382]
[1693448704171,2.4486807,223.24,222.86,0.82387382]
[1693448704172,0.07346042,223.11,222.86,0.82387382]
[1693448704371,0.07346042,223.11,222.84,0.82387382]
[1693448704574,0.07346042,223.11,222.85,0.82387382]
[1693448704769,0.07346042,223.11,222.84,0.82387382]
[1693448704971,0.07346042,223.11,222.85,0.82387382]
[1693448705172,0.07346042,223.11,222.86,0.82387382]
[1693448705374,0.07346042,223.11,222.84,0.82387382]
[1693448705576,0.07346042,223.11,222.85,0.82387382]
[1693448705870,0.07346042,223.11,222.86,0.82387382]
[1693448706074,0.07346042,223.11,222.84,0.82387382]
[1693448706272,0.07346042,223.11,222.85,0.82387382]
[1693448706474,0.07346042,223.12,222.86,0.82387382]
[1693448706774,0.07346042,223.12,222.87,0.82387382]
[1693448706973,0.07346042,223.12,222.83,0.82387382]
[1693448707174,0.07346042,223.12,222.84,0.82387382]
[1693448707375,0.07346042,223.12,222.85,0.82387382]
[1693448707575,0.07346042,223.12,222.83,0.82387382]
[1693448707775,0.07346042,223.12,222.84,0.82387382]
[1693448707975,0.07346042,223.12,222.85,0.82387382]
[1693448708176,0.07346042,223.12,222.83,0.82387382]
[1693448708373,0.07346042,223.12,222.84,0.82387382]
[1693448708578,0.07346042,223.12,222.85,0.82387382]
[1693448708876,0.07346042,223.12,222.86,0.82387382]
[1693448709077,0.07346042,223.12,222.87,0.82387382]
[1693448709274,0.07346042,223.13,222.88,0.82387382]
[1693448709477,0.07346042,223.13,222.82,0.07356809]
[1693448709672,0.07346042,223.13,222.83,0.82387625]
[1693448710378,0.07346042,223.13,222.82,0.82387625]
[1693448710578,0.07346042,223.13,222.83,0.82387625]
[1693448710780,0.07346042,223.13,222.84,0.82387625]
[1693448710974,0.07346042,223.13,222.85,0.82387625]
[1693448711279,0.07346042,223.13,222.86,0.82387625]
[1693448711481,0.07346042,223.13,222.82,0.82387625]
[1693448711678,0.07346042,223.13,222.83,0.82387625]
[1693448711877,0.07346042,223.13,222.84,0.82387625]
[1693448712078,0.07346042,223.13,222.85,0.82387625]
[1693448712278,0.07346042,223.13,222.86,0.82387625]
[1693448712479,0.07346042,223.13,222.82,0.82387625]
[1693448712680,0.07346042,223.13,222.83,0.82387625]
[1693448712878,0.07346042,223.13,222.84,0.82387625]
[1693448713080,0.07346042,223.13,222.82,0.82387625]
[1693448713382,0.07346042,223.14,222.83,0.82387625]
[1693448713584,0.07346042,223.14,222.82,0.82387625]
[1693448713783,0.07346042,223.14,222.83,0.82387625]
[1693448713984,0.07346042,223.14,222.84,0.82387625]
[1693448714180,0.07346042,223.14,222.85,0.82387625]
[1693448714386,0.07346042,223.14,222.86,0.82387625]
[1693448714587,0.07346042,223.14,222.82,0.82387625]
[1693448714786,0.07346042,223.14,222.83,0.82387625]
[1693448714987,0.07346042,223.14,222.82,0.82387625]
[1693448715182,0.07346042,223.14,222.83,0.82387625]
[1693448715382,0.07346042,223.14,222.84,0.82387625]
[1693448715582,0.07346042,223.14,222.85,0.82387625]
[1693448715783,0.07346042,223.14,222.86,0.82387625]
[1693448715985,0.07346042,223.14,222.87,0.82387625]
[1693448716188,0.07346042,223.14,222.88,0.82387625]
[1693448716385,0.07346042,223.14,222.82,0.82387625]
[1693448716583,0.07346042,223.14,222.83,0.82387266]
[1693448716888,0.07346042,223.14,222.84,0.82387266]
[1693448717090,0.07346042,223.14,222.85,0.82387266]
[1693448717291,0.07346042,223.14,222.86,0.82387266]
[1693448717490,0.07346042,223.14,222.87,0.82387266]
[1693448717692,0.07346042,223.14,222.88,0.82387266]
[1693448717893,0.07346042,223.14,222.81,0.07356809]
[1693448718093,0.07346042,223.14,222.82,0.82387168]
[1693448722299,0.07346042,223.13,222.82,0.82387168]
[1693448726106,0.07346042,223.13,222.82,0.89743977]
[1693448726308,0.07346042,223.13,222.83,0.82387168]
[1693448727005,0.07346042,223.13,222.84,0.82387168]
[1693448727205,0.07346042,223.13,222.85,0.82387168]
[1693448727404,0.07346042,223.12,222.82,0.82387168]
[1693448727605,0.07346042,223.12,222.83,0.82387168]
[1693448727808,0.07346042,223.12,222.84,0.82387168]
[1693448728004,0.07346042,223.12,222.85,0.82387168]
[1693448728202,0.07346042,223.12,222.86,0.82387168]
[1693448728504,0.07346042,223.12,222.87,0.82387168]
[1693448728704,0.07346042,223.12,222.83,0.82387168]
[1693448728908,0.07346042,223.12,222.84,0.82387168]
[1693448729109,0.07346042,223.12,222.85,0.82387168]
[1693448729409,0.07346042,223.12,222.86,0.82387168]
[1693448729606,0.07346042,223.12,222.87,0.82387168]
[1693448729805,0.07346042,223.12,222.88,0.82387168]
[1693448730002,0.07346042,223.12,222.82,0.07356809]
[1693448730204,0.07346042,223.12,222.83,0.82389391]
[1693448730407,0.07346042,223.11,222.83,0.82389391]
[1693448731008,0.07346042,223.11,222.83,0.897462]
[1693448731307,0.07346042,223.11,222.84,0.82389391]
[1693448732309,0.07346042,223.1,222.84,0.82389391]
[1693448732510,0.07346042,223.1,222.84,0.897462]
[1693448732710,0.07346042,223.1,222.85,0.82389391]
[1693448733314,0.07346042,223.09,222.85,0.897462]
[1693448733613,0.07346042,223.09,222.86,0.82389391]
[1693448734412,0.07346042,223.07,222.87,0.07356809]
[1693448734613,0.07346042,223.07,222.88,0.82389391]
[1693448735613,0.07346042,223.08,222.88,0.897462]
[1693448735813,0.07346042,223.08,222.89,0.82389391]
[1693448736314,0.07346042,223.08,222.87,0.07356809]
[1693448736507,0.07346042,223.08,222.88,0.89743384]
[1693448736709,0.07346042,223.08,222.87,0.07356809]
[1693448736915,0.07346042,223.08,222.88,0.82386708]
[1693448750021,0.07346042,223.07,222.88,0.82386708]
[1693448766128,0.07346042,223.07,222.86,0.07356809]
[1693448766330,0.07346042,223.07,222.87,0.8974584]
[1693448766529,0.07346042,223.07,222.88,0.82389031]
[1693448780240,0.07346042,223.01,222.81,0.07356809]
[1693448780442,0.07346042,223.01,222.8,0.07356809]
[1693448780641,0.07346042,223.03,222.81,0.82416855]
[1693448780841,0.07346042,223.03,222.78,0.07356809]
[1693448781041,0.07346042,223.03,222.79,0.82416504]
[1693448781743,0.07346042,223.05,222.79,0.82416504]
[1693448781944,0.07346042,223.04,222.8,0.82416504]
[1693448782143,0.07346042,223.04,222.81,0.82416504]
[1693448782342,0.07346042,223.05,222.77,0.07356809]
[1693448782543,0.07346042,223.05,222.78,0.82416509]
[1693448782743,0.07346042,223.05,222.77,0.82416509]
[1693448783546,0.07346042,223.06,222.77,0.82416509]
[1693448783846,0.07346042,223.06,222.78,0.82416509]
[1693448784037,0.07346042,223.06,222.79,0.82416509]
[1693448784237,0.07346042,223.06,222.8,0.82416509]
[1693448784440,0.07346042,223.06,222.81,0.82416509]
[1693448784740,0.07346042,223.06,222.52,0.98090788]
[1693448784946,0.07323283,223.07,222.75,0.07335436]
[1693448785638,0.07323283,223.07,222.76,0.82416911]
[1693448785839,0.07323283,223.07,222.77,0.82416911]
[1693448786045,0.07323283,223.07,222.75,0.82416911]
[1693448786344,0.07323283,223.07,222.76,0.82416911]
[1693448786540,0.07323283,223.07,222.77,0.82416911]
[1693448786739,0.07323283,223.07,222.78,0.82416911]
[1693448787046,0.07323283,223.07,222.79,0.82416911]
[1693448787246,0.07323283,223.08,222.8,0.82416911]
[1693448787446,0.07323283,223.08,222.81,0.82416911]
[1693448787643,0.07323283,223.08,222.75,0.82416911]